bitfinex/quotes_ETHUSD_20250908
["timestamp","ask_amount","ask_price","bid_price","bid_amount"]
[1757319755693,1e-08,4297.9,4297.8,12.70968199]
[1757319755893,1e-08,4297.9,4297.8,16.58598199]
[1757319757047,1e-08,4297.9,4297.8,17.38718199]
[1757319757932,1e-08,4297.9,4297.8,17.37798199]
[1757319758343,1e-08,4297.9,4297.8,9.20307183]
[1757319758518,1e-08,4297.9,4297.8,9.55713648]
[1757319760757,1e-08,4297.9,4297.8,5.68083648]
[1757319761055,1e-08,4297.9,4297.8,9.55483648]
[1757319761350,1e-08,4297.9,4297.8,5.68083648]
[1757319761554,1e-08,4297.9,4297.8,9.55483648]
[1757319761754,1e-08,4297.9,4297.8,6.55483648]
[1757319761959,1e-08,4297.9,4297.8,24.05483648]
[1757319762720,1.22090001,4297.9,4297.8,24.05483648]
[1757319763340,0.91090001,4297.9,4297.8,24.05483648]
[1757319763537,0.43970001,4297.9,4297.8,24.05483648]
[1757319764155,0.43970001,4297.9,4297.8,24.05383648]
[1757319764618,0.43970001,4297.9,4297.8,24.16983648]
[1757319764821,1e-08,4297.9,4297.8,24.16983648]
[1757319765317,1e-08,4297.9,4297.8,21.16983648]
[1757319765722,1e-08,4297.9,4297.8,24.16983648]
[1757319765951,0.74970001,4297.9,4297.8,24.16983648]
[1757319766336,1.22090001,4297.9,4297.8,24.16983648]
[1757319768794,1.22090001,4297.9,4297.8,20.29683648]
[1757319768992,1.22090001,4297.9,4297.8,24.16883648]
[1757319770483,1e-08,4297.9,4297.8,24.17013648]
[1757319771987,1e-08,4297.9,4297.8,24.96213648]
[1757319773195,1e-08,4297.9,4297.8,20.29813648]
[1757319773395,1e-08,4297.9,4297.8,24.17013648]
[1757319775863,0.43170001,4298.7,4298.6,2.3263388]
[1757319776062,0.43170001,4298.7,4298.6,11.45061394]
[1757319776299,1.20260001,4298.7,4298.6,11.45061394]
[1757319776468,1.20260001,4298.7,4298.6,25.95061394]
[1757319778196,1.20260001,4298.7,4298.6,25.94961394]
[1757319781666,0.7709,4298.7,4298.6,25.94961394]
[1757319781905,0.025,4298.8,4298.7,5.32628469]
[1757319782207,0.025,4298.8,4298.7,5.89537066]
[1757319782769,0.025,4298.8,4298.7,6.37747066]
[1757319785117,1.2284,4298.8,4298.7,20.87747066]
[1757319785613,1.2284,4298.8,4298.7,18.55118597]
[1757319785813,1.2284,4298.8,4298.7,23.69728469]
[1757319786115,1.2284,4298.8,4298.7,31.18077909]
[1757319787176,1.2284,4298.8,4298.7,19.94228469]
[1757319787416,1.2284,4298.8,4298.7,23.81428469]
[1757319790393,1.2284,4298.8,4298.7,17.616]
[1757319790594,1.2284,4298.8,4298.7,3.872]
[1757319791709,1.2284,4298.8,4298.4,3.872]
[1757319791710,1.35308,4298.8,4298.4,3.872]
[1757319791926,0.9171,4298.7,4298.4,3.872]
[1757319792123,0.2863,4298.5,4298.4,3.872]
[1757319792279,1.2034,4298.5,4298.4,3.872]
[1757319792716,1.2034,4298.5,4298.4,6.19844705]
[1757319792917,1.2034,4298.5,4298.4,3.872]
[1757319793085,1.2034,4298.5,4298.4,6.19844705]
[1757319793932,0.7188,4298.5,4298.4,6.19844705]
[1757319794130,0.7188,4298.5,4298.4,7.78769668]
[1757319795115,1.2034,4298.5,4298.4,7.78769668]
[1757319795326,1.2034,4298.5,4298.4,6.19844705]
[1757319796991,0.7188,4298.5,4298.4,6.19844705]
[1757319797644,0.026,4298.8,4298.7,2.32628469]
[1757319797804,0.026,4298.8,4298.7,10.98728469]
[1757319798019,0.026,4298.8,4298.7,10.98978469]
[1757319798202,0.026,4298.8,4298.7,12.36843898]
[1757319798608,0.026,4298.8,4298.7,26.96158712]
[1757319800432,0.026,4298.8,4298.7,26.95908712]
[1757319800731,0.026,4298.8,4298.7,27.07508712]
[1757319801429,0.0252,4298.8,4298.7,27.07508712]
[1757319801646,0.744,4298.8,4298.7,27.07508712]
[1757319801799,0.4577,4298.8,4298.7,27.07508712]
[1757319802310,0.744,4298.8,4298.7,27.07508712]
[1757319802519,1.2286,4298.8,4298.7,22.99193898]
[1757319802724,0.0252,4298.8,4298.7,26.86693898]
[1757319803727,0.48,4298.8,4298.7,26.86693898]
[1757319803917,0.7789,4298.8,4298.7,26.86693898]
[1757319806840,1.2338,4298.8,4298.7,26.86693898]
[1757319808730,0.7789,4298.8,4298.7,26.86693898]
[1757319809306,0.0252,4298.8,4298.7,26.86693898]
[1757319810059,0.0252,4298.8,4298.7,26.86943898]
[1757319810750,0.0252,4298.8,4298.7,26.86693898]
[1757319811452,1.2338,4298.8,4298.7,26.86493898]
[1757319811746,0.48,4298.8,4298.7,26.86493898]
[1757319812312,0.48,4298.8,4298.7,26.86743898]
[1757319812313,0.0252,4298.8,4298.7,26.86743898]
[1757319812512,0.0252,4298.8,4298.7,26.98343898]
[1757319812952,0.0252,4298.8,4298.7,27.09975684]
[1757319813458,0.0252,4298.8,4298.7,27.58985684]
[1757319813771,1e-08,4298.8,4298.7,27.58985684]
[1757319813917,0.0184,4298.9,4298.8,5.32623057]
[1757319814118,0.0184,4298.9,4298.8,6.32636577]
[1757319814358,0.0184,4298.9,4298.8,6.32886577]
[1757319814541,0.0184,4298.9,4298.8,20.82886577]
[1757319815073,0.0184,4298.9,4298.8,24.20926577]
[1757319815074,0.3173,4298.9,4298.8,24.20926577]
[1757319815215,0.7721,4298.9,4298.8,24.20926577]
[1757319816971,0.7721,4298.9,4298.8,20.33626577]
[1757319817145,0.7721,4298.9,4298.8,24.20926577]
[1757319817349,0.0184,4298.9,4298.8,24.21176577]
[1757319817574,0.0184,4298.9,4298.8,24.20926577]
[1757319817963,0.7721,4298.9,4298.8,24.20926577]
[1757319818285,1.227,4298.9,4298.8,24.20926577]
[1757319818432,1.227,4298.9,4298.8,23.69923057]
[1757319819579,0.7721,4298.9,4298.8,23.69923057]
[1757319820076,1.227,4298.9,4298.8,23.69923057]
[1757319821397,1.227,4298.9,4298.8,3.874]
[1757319823336,1.227,4298.9,4298.8,6.20023057]
[1757319824130,0.7721,4298.9,4298.8,6.20023057]
[1757319824635,0.0184,4298.9,4298.8,9.20273057]
[1757319824839,0.0184,4298.9,4298.8,9.69283057]
[1757319825118,0.0184,4298.9,4298.8,9.69443057]
[1757319825520,0.0184,4298.9,4298.8,9.69283057]
[1757319825879,0.0184,4298.9,4298.8,9.69443057]
[1757319826329,0.0184,4298.9,4298.8,9.69283057]
[1757319826708,0.0176,4298.9,4298.8,9.69283057]
[1757319826944,0.0176,4298.9,4298.8,24.19283057]
[1757319827432,0.0176,4298.9,4298.8,24.19443057]
[1757319828388,0.001,4299.3,4299.2,2.55911414]
[1757319828587,0.001,4299.3,4299.2,9.20101414]
[1757319828900,0.001,4299.3,4299.2,9.69361414]
[1757319829238,0.001,4299.7,4299.3,3.792]
[1757319829465,0.02,4299.9,4299.6,16.75185107]
[1757319829733,0.02,4299.9,4299.8,0.0025]
[1757319829917,0.02,4299.9,4299.8,1.2862]
[1757319830230,0.02,4299.9,4299.8,18.7846]
[1757319831515,0.02,4299.9,4299.8,18.9022]
[1757319831716,0.02,4299.9,4299.8,20.56665734]
[1757319832333,0.02,4300.9,4300.3,3.0]
[1757319832513,0.02,4300.9,4300.5,3.0]
[1757319832714,0.02,4300.9,4300.7,3.116]
[1757319833132,0.7787,4300.8,4300.7,17.616]
[1757319833736,0.7787,4300.8,4300.7,21.494]
[1757319834236,1.2354,4300.8,4300.7,21.494]
[1757319834805,0.7787,4300.8,4300.7,21.494]
[1757319836347,0.025,4300.8,4300.7,21.494]
[1757319836632,0.4907,4300.8,4300.7,21.494]
[1757319836939,0.7991,4300.8,4300.7,21.494]
[1757319837237,0.025,4300.8,4300.7,21.4965]
[1757319837709,0.025,4300.8,4300.7,21.494]
[1757319838108,0.7991,4300.8,4300.7,21.494]
[1757319839236,1.2558,4300.8,4300.7,21.494]
[1757319842563,0.025,4300.8,4300.7,21.4965]
[1757319842769,0.7991,4300.8,4300.7,17.616]
[1757319843073,1.2558,4300.8,4300.7,17.616]
[1757319843273,1.2558,4300.8,4300.6,2.2418]
[1757319843566,0.3334,4300.8,4300.7,0.116]
[1757319843934,0.3334,4300.8,4300.5,3.878]
[1757319844137,0.9224,4300.7,4300.5,3.994]
[1757319844339,1.2308,4300.6,4300.5,3.994]
[1757319844680,1.2308,4300.6,4300.5,0.116]
[1757319845434,1.35838,4300.6,4300.3,0.3334]
[1757319845659,1.35838,4300.6,4300.1,0.116]
[1757319845865,1.35838,4300.6,4299.4,1.786]
[1757319845866,0.9224,4300.5,4299.9,0.69855411]
[1757319846072,0.116,4300.4,4299.9,0.69855411]
[1757319846257,0.3084,4300.0,4299.7,0.116]
[1757319846576,0.9224,4299.9,4299.8,0.69861104]
[1757319846737,2.32580232,4299.6,4299.4,0.116]
[1757319846932,1.2308,4299.5,4299.1,0.116]
[1757319847378,1.2308,4299.5,4299.4,0.69868426]
[1757319848573,1.2308,4299.5,4299.4,0.81468426]
[1757319851090,0.4657,4299.7,4299.4,0.81468426]
[1757319851291,0.9224,4300.0,4299.8,2.32568909]
[1757319851495,0.3084,4299.9,4299.8,2.32568909]
[1757319851691,0.7741,4299.9,4299.8,2.32568909]
[1757319851895,0.7741,4299.9,4299.8,2.44168909]
[1757319852412,0.001,4300.4,4300.3,2.32541915]
[1757319852617,0.001,4300.4,4300.3,2.44141915]
[1757319852970,0.001,4300.4,4300.3,2.65277334]
[1757319853272,0.001,4300.4,4300.3,7.99781915]
[1757319853996,0.001,4300.4,4300.3,22.49781915]
[1757319854190,0.025,4300.8,4300.7,2.32520287]
[1757319854389,0.025,4300.8,4300.7,9.32720287]
[1757319854623,0.025,4300.8,4300.7,9.97900287]
[1757319854624,1e-08,4300.8,4300.7,9.97900287]
[1757319854918,0.001,4301.3,4301.2,2.32493257]
[1757319855127,0.001,4301.3,4301.2,11.11393257]
[1757319855267,0.001,4301.3,4301.2,12.64592682]
[1757319855467,0.001,4301.3,4301.2,12.45782682]
[1757319855719,0.3094,4301.3,4301.2,26.95782682]
[1757319856090,0.001,4301.3,4301.2,26.95782682]
[1757319856593,0.001,4301.3,4301.2,27.14592682]
[1757319858368,0.001,4301.3,4301.2,26.95782682]
[1757319858571,0.001,4301.3,4301.2,27.14592682]
[1757319858992,0.001,4301.3,4301.2,26.95782682]
[1757319859332,0.3094,4301.3,4301.2,23.07182682]
[1757319859625,0.3094,4301.3,4301.2,26.95682682]
[1757319859626,1.2318,4301.3,4301.2,26.95682682]
[1757319860178,1.2318,4301.3,4301.2,25.61293257]
[1757319860626,1.2318,4301.3,4301.2,21.72793257]
[1757319860818,1.2318,4301.3,4301.2,25.61293257]
[1757319861083,1.2318,4301.3,4301.2,20.82593257]
[1757319861291,1.2318,4301.3,4301.2,6.32593257]
[1757319862376,1.2318,4301.3,4301.2,4.001]
[1757319862804,1.2318,4301.3,4301.2,6.32593257]
[1757319863003,1.2318,4301.3,4301.2,4.001]
[1757319863322,1.2318,4301.3,4301.2,6.32593257]
[1757319863478,1.2318,4301.3,4301.2,4.001]
[1757319863683,1.2318,4301.3,4301.2,0.116]
[1757319863898,1.2318,4301.3,4301.2,4.0]
[1757319864422,1.2318,4301.3,4301.2,7.02328178]
[1757319864778,1.2318,4301.3,4301.2,8.14621353]
[1757319864779,0.001,4301.3,4301.2,8.14621353]
[1757319865086,0.7874,4301.3,4301.2,7.95811353]
[1757319865413,0.001,4301.3,4301.2,7.21138178]
[1757319866709,0.001,4301.3,4301.2,10.21138178]
[1757319868622,0.001,4301.3,4301.2,10.02328178]
[1757319872017,0.001,4301.3,4301.2,10.21138178]
[1757319872612,0.001,4301.3,4301.2,6.13928178]
[1757319872815,0.001,4301.3,4301.2,10.20938178]
[1757319873021,0.001,4301.3,4301.2,11.46282107]
[1757319873326,0.7874,4301.3,4301.2,11.27472107]
[1757319874319,1.2845,4301.3,4301.2,11.27572107]
[1757319874619,1.2845,4301.3,4301.2,3.13928178]
[1757319874816,1.2845,4301.3,4301.2,4.69634921]
[1757319875116,1.2845,4301.3,4301.2,7.02128178]
[1757319875940,1.2845,4301.3,4301.2,0.81434921]
[1757319876139,1.2845,4301.3,4301.2,0.69834921]
[1757319876289,1.64542183,4301.3,4300.8,0.118]
[1757319876799,1.2845,4301.3,4300.9,2.32507916]
[1757319876999,0.3175,4301.3,4300.9,2.32507916]
[1757319877230,0.967,4301.2,4300.8,3.14157093]
[1757319877448,0.3165,4300.9,4300.8,3.14157381]
[1757319877598,0.3157,4300.9,4300.8,3.14157381]
[1757319877799,1.2827,4300.9,4300.8,3.14158256]
[1757319879504,1.2827,4300.9,4300.8,0.81643376]
[1757319879706,1.2827,4300.9,4300.8,3.14158256]
[1757319880930,1.2827,4300.9,4300.8,0.81643376]
[1757319881104,1.41097,4300.9,4300.8,0.002]
[1757319882142,1.2827,4300.9,4300.8,0.002]
[1757319884012,3.60779474,4300.9,4300.8,0.002]
[1757319885035,1.2827,4300.9,4300.8,0.002]
[1757319885729,3.60779474,4300.9,4300.8,0.002]
[1757319886610,1.2827,4300.9,4300.8,0.002]
[1757319892182,3.60779474,4300.9,4300.8,0.002]
[1757319892656,1.2827,4300.9,4300.8,0.002]
[1757319894260,3.60779474,4300.9,4300.8,0.002]
[1757319895061,1.2827,4300.9,4300.8,0.002]
[1757319897187,3.60779474,4300.9,4300.8,0.002]
[1757319897339,4.36837421,4300.9,4300.8,0.002]
[1757319897535,5.16037421,4300.9,4300.8,0.002]
[1757319897823,5.37763398,4300.9,4300.8,0.002]
[1757319898070,8.37763398,4300.9,4300.8,0.002]
[1757319899034,15.43763398,4300.9,4300.8,0.002]
[1757319899359,16.06859207,4300.9,4300.8,0.002]
[1757319901050,19.94959207,4300.9,4300.8,0.002]
[1757319902764,19.95059207,4300.9,4300.8,0.002]
[1757319903061,19.94979207,4300.9,4300.8,0.002]
[1757319908226,6.11731101,4300.5,4300.4,1e-08]
[1757319908431,13.70659555,4300.5,4300.4,1e-08]
[1757319908654,15.43259307,4300.5,4300.4,1e-08]
[1757319910351,22.49259307,4300.5,4300.4,1e-08]
[1757319910524,15.43259307,4300.5,4300.4,1e-08]
[1757319912364,15.43257912,4300.5,4300.4,1e-08]
[1757319912741,10.48558633,4300.1,4300.0,1e-08]
[1757319913092,15.21279024,4300.1,4300.0,1e-08]
[1757319913388,16.43819024,4300.1,4300.0,1e-08]
[1757319917369,9.07013122,4300.1,4300.0,1e-08]
[1757319917540,7.21277313,4300.1,4300.0,1e-08]
[1757319917864,8.68957389,4300.1,4300.0,1e-08]
[1757319918269,9.43527389,4300.1,4300.0,1e-08]
[1757319918568,9.91497389,4300.1,4300.0,1e-08]
[1757319919163,10.04527338,4300.1,4300.0,1e-08]
[1757319919672,10.54563326,4300.1,4300.0,1e-08]
[1757319921238,0.792,4299.9,4299.8,1e-08]
[1757319921439,7.34218078,4299.9,4299.8,1e-08]
[1757319921662,9.06794066,4299.9,4299.8,1e-08]
[1757319922462,14.91857717,4299.9,4299.8,1e-08]
[1757319923350,14.57103186,4299.9,4299.8,1e-08]
[1757319923549,11.33594031,4299.9,4299.8,1e-08]
[1757319923746,17.18657682,4299.9,4299.8,1e-08]
[1757319925538,17.36004058,4299.9,4299.8,1e-08]
[1757319927781,24.42004058,4299.9,4299.8,1e-08]
[1757319928078,27.42004058,4299.9,4299.8,1e-08]
[1757319928490,27.41924058,4299.9,4299.8,1e-08]
[1757319931867,3.11817646,4298.9,4298.8,0.027]
[1757319932106,9.54287765,4298.9,4298.8,0.027]
[1757319933608,10.14155768,4298.9,4298.8,0.027]
[1757319933799,10.43985768,4298.9,4298.8,0.027]
[1757319935374,13.43985768,4298.9,4298.8,0.027]
[1757319936506,12.67345768,4298.9,4298.8,0.027]
[1757319936688,19.73345768,4298.9,4298.8,0.027]
[1757319937479,21.0012642,4298.9,4298.8,0.027]
[1757319937680,21.4561642,4298.9,4298.8,1e-08]
[1757319939915,21.65660744,4298.9,4298.8,1e-08]
[1757319943898,20.86449321,4298.9,4298.8,1e-08]
[1757319944645,21.65649321,4298.9,4298.8,1e-08]
[1757319945937,26.58312972,4298.9,4298.8,1e-08]
[1757319946233,27.50612972,4298.9,4298.8,1e-08]
[1757319951514,27.03802972,4298.9,4298.8,1e-08]
[1757319951717,26.28482972,4298.9,4298.8,0.19070001]
[1757319952120,26.75292972,4298.9,4298.8,1e-08]
[1757319952442,27.05122972,4298.9,4298.8,1e-08]
[1757319952625,26.28482972,4298.9,4298.8,1e-08]
[1757319952942,27.05122972,4298.9,4298.8,1e-08]
[1757319953924,27.05042972,4298.9,4298.8,1e-08]
[1757319954307,22.41002972,4298.9,4298.8,1e-08]
[1757319954513,12.58139321,4298.9,4298.8,0.19070001]
[1757319954714,12.03696514,4298.9,4298.8,0.65590001]
[1757319955358,12.82896514,4298.9,4298.8,0.65590001]
[1757319955944,12.82896514,4298.9,4298.8,0.19070001]
[1757319959434,12.82896514,4298.9,4298.8,1e-08]
[1757319959636,14.92963573,4298.9,4298.8,1e-08]
[1757319962073,14.92963573,4298.9,4298.8,0.19070001]
[1757319962288,14.92963573,4298.9,4298.8,1e-08]
[1757319962969,15.39183573,4298.9,4298.8,1e-08]
[1757319964083,14.92963573,4298.9,4298.8,1e-08]
[1757319966867,15.70083573,4298.9,4298.8,1e-08]
[1757319967810,15.39183573,4298.9,4298.8,1e-08]
[1757319968189,14.92963573,4298.9,4298.8,1e-08]
[1757319970288,14.93028614,4298.9,4298.8,1e-08]
[1757319970680,15.39248614,4298.9,4298.8,1e-08]
[1757319971103,14.93028614,4298.9,4298.8,1e-08]
[1757319971708,15.39248614,4298.9,4298.8,1e-08]
[1757319973707,15.70148614,4298.9,4298.8,1e-08]
[1757319974014,15.39248614,4298.9,4298.8,1e-08]
[1757319974521,14.93028614,4298.9,4298.8,1e-08]
[1757319976692,15.70148614,4298.9,4298.8,1e-08]
[1757319977023,23.21458614,4298.9,4298.8,1e-08]
[1757319979401,23.21378614,4298.9,4298.8,1e-08]
[1757319980663,22.71237962,4298.9,4298.8,1e-08]
[1757319980803,23.21428944,4298.9,4298.8,1e-08]
[1757319982333,30.59084784,4298.9,4298.8,1e-08]
[1757319984934,3.11828469,4298.7,4298.6,0.002]
[1757319985137,12.46823545,4298.7,4298.6,0.002]
[1757319985347,13.96181431,4298.7,4298.6,0.002]
[1757319988041,21.02181431,4298.7,4298.6,0.002]
[1757319988544,20.185612,4298.7,4298.6,0.002]
[1757319992429,3.1185553,4298.2,4298.1,0.02]
[1757319992639,14.71650303,4298.2,4298.1,0.02]
[1757319992930,15.9149529,4298.2,4298.1,0.02]
[1757319993263,22.9749529,4298.2,4298.1,0.02]
[1757319993559,22.9749529,4298.2,4298.1,1e-08]
[1757319993856,25.54866087,4298.2,4298.1,1e-08]
[1757319994450,26.03456087,4298.2,4298.1,1e-08]
[1757319994648,25.54866087,4298.2,4298.1,1e-08]
[1757319995235,26.03456087,4298.2,4298.1,1e-08]
[1757319996135,26.03411554,4298.2,4298.1,1e-08]
[1757319997261,29.03411554,4298.2,4298.1,1e-08]
[1757319997850,29.03411554,4298.2,4297.4,0.002]
[1757319997851,0.792,4297.5,4297.4,1e-08]
[1757319998055,26.56443666,4297.5,4297.4,1e-08]
[1757319998257,27.30399455,4297.5,4297.4,1e-08]
[1757319998755,27.39723236,4297.5,4297.4,1e-08]
[1757319998950,27.39723236,4297.5,4297.4,0.19070001]
[1757319999467,20.81112326,4297.5,4297.4,0.67720001]
[1757320000268,20.02067396,4297.5,4297.4,0.79640001]
[1757320000450,19.38829834,4297.5,4297.4,0.79640001]
[1757320001229,19.38829834,4297.5,4297.4,0.67720001]
[1757320003867,19.51868444,4297.5,4297.4,0.67720001]
[1757320004866,19.51788444,4297.5,4297.4,0.67720001]
[1757320005078,19.51788444,4297.5,4297.4,0.19070001]
[1757320005243,19.51790364,4297.5,4297.4,0.19070001]
[1757320012304,20.35443205,4297.5,4297.4,1e-08]
[1757320012586,20.81653205,4297.5,4297.4,1e-08]
[1757320012797,21.30243205,4297.5,4297.4,1e-08]
[1757320013084,21.80352933,4297.5,4297.4,1e-08]
[1757320014570,21.80367532,4297.5,4297.4,1e-08]
[1757320015165,6.60965487,4297.1,4297.0,1e-08]
[1757320015487,11.67699455,4297.1,4297.0,1e-08]
[1757320015689,12.93149455,4297.1,4297.0,1e-08]
[1757320016271,13.02474323,4297.1,4297.0,1e-08]
[1757320016875,3.11925918,4296.9,4296.8,1e-08]
[1757320017069,19.66819664,4296.9,4296.8,1e-08]
[1757320017274,21.65891123,4296.9,4296.8,1e-08]
[1757320020864,0.792,4296.1,4295.8,1e-08]
[1757320021064,6.11980092,4295.9,4295.8,1e-08]
[1757320021268,6.63389409,4295.9,4295.8,1e-08]
[1757320021464,8.75029213,4295.9,4295.8,1e-08]
[1757320021678,8.67577466,4295.9,4295.8,0.19070001]
[1757320021903,13.04988228,4295.9,4295.8,0.19070001]
[1757320022305,12.54977466,4295.9,4295.8,0.19070001]
[1757320022517,12.33258149,4295.9,4295.8,0.19070001]
[1757320022906,12.33258149,4295.9,4295.8,1e-08]
[1757320023117,12.79178149,4295.9,4295.8,1e-08]
[1757320023303,13.08868149,4295.9,4295.8,1e-08]
[1757320025092,13.43598803,4295.9,4295.8,1e-08]
[1757320025393,13.08868149,4295.9,4295.8,1e-08]
[1757320025594,12.79178149,4295.9,4295.8,1e-08]
[1757320026007,13.13907937,4295.9,4295.8,1e-08]
[1757320026690,13.43597937,4295.9,4295.8,1e-08]
[1757320027326,13.93437937,4295.9,4295.8,1e-08]
[1757320028624,0.792,4295.7,4295.1,1e-08]
[1757320028798,3.12018029,4295.2,4295.1,1e-08]
[1757320029002,11.78318029,4295.2,4295.1,1e-08]
[1757320029200,8.1100527,4295.2,4295.1,1e-08]
[1757320029414,11.9840527,4295.2,4295.1,1e-08]
[1757320030207,13.46971708,4295.2,4295.1,1e-08]
[1757320031245,14.72421708,4295.2,4295.1,1e-08]
[1757320031457,14.94061758,4295.2,4295.1,1e-08]
[1757320032223,15.05944772,4295.2,4295.1,1e-08]
[1757320034480,15.05944772,4295.2,4295.1,0.00200001]
[1757320036574,14.94061758,4295.2,4295.1,0.00200001]
[1757320037196,11.9832527,4295.2,4295.1,0.19270001]
[1757320037345,11.9842527,4295.2,4295.1,0.67900001]
[1757320037544,11.9842527,4295.2,4295.1,0.19270001]
[1757320039792,8.1092527,4295.2,4295.1,0.67900001]
[1757320040248,11.9842527,4295.2,4295.1,0.67900001]
[1757320042197,8.9842527,4295.2,4295.1,0.79820001]
[1757320042345,8.9842527,4295.2,4295.1,0.19270001]
[1757320042555,12.7403527,4295.2,4295.1,0.00200001]
[1757320042759,14.58662658,4295.2,4295.1,0.00200001]
[1757320043301,14.08822658,4295.2,4295.1,0.00200001]
[1757320044556,14.21835895,4295.2,4295.1,0.00200001]
[1757320045494,14.71849625,4295.2,4295.1,0.00200001]
[1757320046974,14.42159625,4295.2,4295.1,0.00200001]
[1757320047364,15.17989625,4295.2,4295.1,0.00200001]
[1757320047862,14.72199625,4295.2,4295.1,0.00200001]
[1757320048198,14.42159625,4295.2,4295.1,0.00200001]
[1757320048597,14.72199625,4295.2,4295.1,0.00200001]
[1757320049519,14.72199625,4295.2,4295.1,0.10200001]
[1757320050034,13.96239625,4295.2,4295.1,0.10200001]
[1757320050909,10.08739625,4295.2,4295.1,0.29270001]
[1757320051219,12.832552,4295.2,4295.1,0.29270001]
[1757320051406,12.832552,4295.2,4295.1,0.10200001]
[1757320051780,13.294952,4295.2,4295.1,0.10200001]
[1757320052321,12.832552,4295.2,4295.1,0.10200001]
[1757320052887,12.833552,4295.2,4295.1,0.10200001]
[1757320053987,13.295952,4295.2,4295.1,0.10200001]
[1757320054521,12.833552,4295.2,4295.1,0.10200001]
[1757320054725,12.833552,4295.2,4295.1,0.29270001]
[1757320055712,12.832752,4295.2,4295.1,0.29270001]
[1757320057431,12.832752,4295.2,4295.1,0.10200001]
[1757320057640,12.782752,4295.2,4295.1,0.10200001]
[1757320058245,8.907752,4295.2,4295.1,0.10200001]
[1757320058396,9.782752,4295.2,4295.1,0.78180001]
[1757320058601,9.15266718,4295.2,4295.1,0.78180001]
[1757320058810,8.36066718,4295.2,4295.1,0.78180001]
[1757320059434,9.15266718,4295.2,4295.1,0.78180001]
[1757320059632,9.15266718,4295.2,4295.1,0.29270001]
[1757320060133,9.15266718,4295.2,4295.1,0.10200001]
[1757320061323,9.91546718,4295.2,4295.1,0.10200001]
[1757320061711,9.61506718,4295.2,4295.1,0.10200001]
[1757320062328,9.15256759,4295.2,4295.1,0.10200001]
[1757320062848,9.15256759,4295.2,4295.1,0.29270001]
[1757320063751,9.15256759,4295.2,4295.1,0.10200001]
[1757320065955,9.1525287,4295.2,4295.1,0.10200001]
[1757320068743,9.6149287,4295.2,4295.1,0.10200001]
[1757320068947,9.9153287,4295.2,4295.1,0.10200001]
[1757320069410,10.3732287,4295.2,4295.1,0.10200001]
[1757320069742,14.77419787,4295.2,4295.1,0.10200001]
[1757320069943,15.27657953,4295.2,4295.1,0.10200001]
[1757320070534,28.19920847,4295.2,4295.1,0.10200001]
[1757320073633,28.19920847,4295.2,4295.1,1e-08]
[1757320078887,22.33657953,4295.2,4295.1,1e-08]
[1757320079190,22.31987953,4295.2,4295.1,1e-08]
[1757320079689,28.18250847,4295.2,4295.1,1e-08]
[1757320080003,22.31987953,4295.2,4295.1,1e-08]
[1757320081190,22.31907953,4295.2,4295.1,1e-08]
[1757320082069,15.25907953,4295.2,4295.1,1e-08]
[1757320083905,15.25907953,4295.2,4295.1,0.19070001]
[1757320083906,14.05507953,4295.2,4295.1,0.19070001]
[1757320084198,14.50367953,4295.2,4295.1,1e-08]
[1757320084408,14.50367953,4295.2,4295.1,0.19070001]
[1757320084409,8.11794589,4295.2,4295.1,0.19070001]
[1757320084568,8.49056423,4295.2,4295.1,0.19070001]
[1757320084891,11.49056423,4295.2,4295.1,0.19070001]
[1757320085299,12.28256423,4295.2,4295.1,0.19070001]
[1757320086162,12.28226023,4295.2,4295.1,0.19070001]
[1757320087722,12.28226023,4295.2,4295.1,0.19270001]
[1757320088421,8.9860527,4295.2,4295.1,0.76860001]
[1757320088621,8.9860527,4295.2,4295.1,0.64940001]
[1757320092392,8.9860527,4295.2,4295.1,0.19270001]
[1757320093822,8.9860527,4295.2,4295.1,0.00200001]
[1757320094325,9.4346527,4295.2,4295.1,0.00200001]
[1757320094625,8.9860527,4295.2,4295.1,0.19270001]
[1757320097037,8.9860527,4295.2,4295.1,0.64940001]
[1757320097900,6.65787241,4295.2,4295.1,0.64940001]
[1757320098113,8.9860527,4295.2,4295.1,0.64940001]
[1757320098295,6.65787241,4295.2,4295.1,0.64940001]
[1757320099395,2.78287241,4295.2,4295.1,0.64940001]
[1757320099594,6.65687241,4295.2,4295.1,0.64940001]
[1757320101329,5.86487241,4295.2,4295.1,0.76860001]
[1757320101528,5.98087241,4295.2,4295.1,0.76860001]
[1757320102208,5.98087241,4295.2,4295.1,0.64940001]
[1757320102525,0.20187241,4295.2,4295.1,8.95946344]
[1757320102713,0.20187241,4295.2,4295.1,10.09074046]
[1757320103195,0.20187241,4295.2,4295.1,10.7901186]
[1757320103401,0.20187241,4295.2,4295.1,8.46188411]
[1757320103619,0.20187241,4295.2,4295.1,10.7901186]
[1757320104827,0.20187241,4295.2,4295.1,8.46188411]
[1757320104999,0.20187241,4295.2,4295.1,10.7901186]
[1757320105335,0.001,4295.7,4295.2,2.32818029]
[1757320105495,0.001,4295.7,4295.6,2.32796349]
[1757320105696,0.001,4295.7,4295.6,2.51866349]
[1757320105900,0.001,4295.7,4295.6,3.13736349]
[1757320106095,0.001,4295.7,4295.6,3.23059521]
[1757320106323,0.001,4295.7,4295.6,10.60896967]
[1757320106519,0.001,4295.7,4295.6,11.74024669]
[1757320106832,0.0002,4295.7,4295.6,11.74024669]
[1757320107608,0.0002,4295.7,4295.6,4.24267223]
[1757320107814,0.0002,4295.7,4295.6,3.11139521]
[1757320110105,0.0002,4295.7,4295.6,3.23059521]
[1757320110501,0.001,4296.4,4296.0,2.32774674]
[1757320110707,0.001,4296.4,4296.0,16.60539866]
[1757320110904,0.001,4296.4,4296.3,2.3275842]
[1757320111105,0.001,4297.5,4296.7,2.32736751]
[1757320111429,0.001,4297.5,4296.7,18.56444197]
[1757320111609,0.001,4297.5,4296.7,19.06394197]
[1757320111808,0.001,4297.5,4296.7,19.36488958]
[1757320112607,0.001,4297.5,4296.7,19.48088958]
[1757320112807,0.001,4297.5,4296.7,19.9027401]
[1757320119016,0.001,4297.5,4296.8,5.32731334]